[Event "Titled Tuesday Blitz April 12 Early 2022"]
[White "Dronavalli, Harika"]
[Black "Jobava, Baadur"]
[WhiteFideId "5015197"]
[BlackFideId "13601520"]
[WhiteElo "2382"]
[BlackElo "2617"]
[Result "0-1"]
[Round "02"]
[TimeControl "180+1"]
[Date "2022.04.12"]
[WhiteClock "0:00:17"]
[BlackClock "0:00:25"]

1. e4 {[%clk 0:02:56]}  e6 {[%clk 0:02:58]} 2. d4 {[%clk 0:02:55]}  d5 {[%clk 0:02:59]} 3. Nd2 {[%clk 0:02:54]}  dxe4 {[%clk 0:02:59]} 4. Nxe4 {[%clk 0:02:54]}  Bd7 {[%clk 0:03:00]} 5. Nf3 {[%clk 0:02:50]}  Bc6 {[%clk 0:03:00]} 6. Bd3 {[%clk 0:02:50]}  Nd7 {[%clk 0:03:01]} 7. Qe2 {[%clk 0:02:49]}  Ngf6 {[%clk 0:02:59]} 8. O-O {[%clk 0:02:38]}  Nxe4 {[%clk 0:02:57]} 9. Bxe4 {[%clk 0:02:38]}  Bxe4 {[%clk 0:02:58]} 10. Qxe4 {[%clk 0:02:38]}  c6 {[%clk 0:02:59]} 11. c4 {[%clk 0:02:33]}  Be7 {[%clk 0:02:58]} 12. Bf4 {[%clk 0:02:32]}  O-O {[%clk 0:02:58]} 13. Rad1 {[%clk 0:02:26]}  a5 {[%clk 0:02:57]} 14. Rfe1 {[%clk 0:02:21]}  a4 {[%clk 0:02:58]} 15. Be5 {[%clk 0:02:17]}  Re8 {[%clk 0:02:52]} 16. d5 {[%clk 0:02:09]}  exd5 {[%clk 0:02:33]} 17. cxd5 {[%clk 0:02:09]}  Nxe5 {[%clk 0:02:21]} 18. Nxe5 {[%clk 0:02:05]}  Bd6 {[%clk 0:02:12]} 19. dxc6 {[%clk 0:01:28]}  Rxe5 {[%clk 0:02:10]} 20. Qxe5 {[%clk 0:00:54]}  Bxe5 {[%clk 0:02:11]} 21. Rxd8+ {[%clk 0:00:54]}  Rxd8 {[%clk 0:02:10]} 22. cxb7 {[%clk 0:00:54]}  f6 {[%clk 0:02:07]} 23. Rc1 {[%clk 0:00:34]}  Kf7 {[%clk 0:01:54]} 24. f4 {[%clk 0:00:34]}  Bxf4 {[%clk 0:00:36]} 25. Rc4 {[%clk 0:00:33]}  Be5 {[%clk 0:00:28]} 26. Rxa4 {[%clk 0:00:28]}  Rd1+ {[%clk 0:00:28]} 27. Kf2 {[%clk 0:00:25]}  Rd2+ {[%clk 0:00:28]} 28. Kf3 {[%clk 0:00:23]}  Rxb2 {[%clk 0:00:29]} 29. Ra7 {[%clk 0:00:21]}  Kg6 {[%clk 0:00:29]} 30. a4 {[%clk 0:00:20]}  Bb8 {[%clk 0:00:29]} 31. Ra8 {[%clk 0:00:20]}  Rxb7 {[%clk 0:00:29]} 32. g3 {[%clk 0:00:21]}  f5 {[%clk 0:00:26]} 33. a5 {[%clk 0:00:21]}  Rb3+ {[%clk 0:00:26]} 34. Kg2 {[%clk 0:00:21]}  f4 {[%clk 0:00:26]} 35. gxf4 {[%clk 0:00:19]}  Bxf4 {[%clk 0:00:27]} 36. a6 {[%clk 0:00:19]}  Ra3 {[%clk 0:00:26]} 37. Rf8 {[%clk 0:00:16]}  Be3 {[%clk 0:00:23]} 38. Rf3 {[%clk 0:00:16]}  Ra2+ {[%clk 0:00:24]} 39. Kh3 {[%clk 0:00:16]}  Ba7 {[%clk 0:00:24]} 40. Rg3+ {[%clk 0:00:17]}  Kh6 {[%clk 0:00:25]} 0-1


[Site "https://www.chess.com"]

[Event "Titled Tuesday Blitz April 12 Early 2022"]
[White "Hnydiuk, Aleksander"]
[Black "Pakleza, Zbigniew"]
[WhiteFideId "1109057"]
[BlackFideId "1119290"]
[WhiteElo "2374"]
[BlackElo "2467"]
[Result "0-1"]
[Round "02"]
[TimeControl "180+1"]
[Date "2022.04.13"]
[WhiteClock "0:00:24"]
[BlackClock "0:00:53"]

1. Nf3 {[%clk 0:03:00]}  d5 {[%clk 0:02:59]} 2. d4 {[%clk 0:03:00]}  c6 {[%clk 0:02:58]} 3. c4 {[%clk 0:03:00]}  Nf6 {[%clk 0:02:58]} 4. cxd5 {[%clk 0:03:00]}  cxd5 {[%clk 0:02:58]} 5. Nc3 {[%clk 0:03:01]}  Nc6 {[%clk 0:02:58]} 6. Bf4 {[%clk 0:03:01]}  Qb6 {[%clk 0:02:59]} 7. e3 {[%clk 0:02:17]}  Qxb2 {[%clk 0:02:48]} 8. Rc1 {[%clk 0:01:17]}  Bf5 {[%clk 0:02:22]} 9. Be2 {[%clk 0:01:05]}  e6 {[%clk 0:02:21]} 10. O-O {[%clk 0:01:03]}  Ba3 {[%clk 0:02:21]} 11. Qa4 {[%clk 0:00:55]}  Qb4 {[%clk 0:02:12]} 12. Qxb4 {[%clk 0:00:50]}  Nxb4 {[%clk 0:02:13]} 13. Nb5 {[%clk 0:00:49]}  Bxc1 {[%clk 0:02:12]} 14. Rxc1 {[%clk 0:00:40]}  O-O {[%clk 0:01:50]} 15. Bd6 {[%clk 0:00:39]}  Nxa2 {[%clk 0:01:13]} 16. Ra1 {[%clk 0:00:39]}  Rfc8 {[%clk 0:01:13]} 17. Rxa2 {[%clk 0:00:31]}  Rc1+ {[%clk 0:01:07]} 18. Bf1 {[%clk 0:00:31]}  Bd3 {[%clk 0:00:55]} 19. Nd2 {[%clk 0:00:24]}  Bxb5 {[%clk 0:00:53]} 0-1


[Site "https://www.chess.com"]

[Event "Titled Tuesday Blitz April 12 Early 2022"]
[White "Ianov, Viktor"]
[Black "Mekhane, Adam"]
[WhiteFideId "14102730"]
[BlackFideId "36050601"]
[WhiteElo "2161"]
[BlackElo "2002"]
[Result "1-0"]
[Round "02"]
[TimeControl "180+1"]
[Date "2022.04.13"]
[WhiteClock "0:01:26"]
[BlackClock "0:00:01"]

1. Nf3 {[%clk 0:03:00]}  Nf6 {[%clk 0:02:58]} 2. g3 {[%clk 0:03:00]}  g6 {[%clk 0:02:58]} 3. b3 {[%clk 0:03:00]}  Bg7 {[%clk 0:02:59]} 4. Bb2 {[%clk 0:03:00]}  O-O {[%clk 0:03:00]} 5. Bg2 {[%clk 0:03:00]}  d6 {[%clk 0:03:00]} 6. d4 {[%clk 0:02:59]}  Nbd7 {[%clk 0:02:59]} 7. O-O {[%clk 0:02:59]}  Qe8 {[%clk 0:03:00]} 8. Nbd2 {[%clk 0:02:57]}  d5 {[%clk 0:02:38]} 9. c4 {[%clk 0:02:55]}  c6 {[%clk 0:02:33]} 10. Rc1 {[%clk 0:02:55]}  Qd8 {[%clk 0:02:10]} 11. Re1 {[%clk 0:02:53]}  Re8 {[%clk 0:02:10]} 12. e4 {[%clk 0:02:53]}  dxe4 {[%clk 0:02:06]} 13. Nxe4 {[%clk 0:02:53]}  Nxe4 {[%clk 0:02:06]} 14. Rxe4 {[%clk 0:02:53]}  Nf6 {[%clk 0:02:07]} 15. Re2 {[%clk 0:02:49]}  Bf5 {[%clk 0:02:03]} 16. Ne5 {[%clk 0:02:45]}  Nd7 {[%clk 0:02:02]} 17. Nd3 {[%clk 0:02:34]}  Bxd3 {[%clk 0:01:39]} 18. Qxd3 {[%clk 0:02:33]}  e5 {[%clk 0:01:39]} 19. d5 {[%clk 0:02:23]}  Nc5 {[%clk 0:01:33]} 20. Qc2 {[%clk 0:02:21]}  cxd5 {[%clk 0:01:31]} 21. Bxd5 {[%clk 0:02:20]}  Rc8 {[%clk 0:01:25]} 22. Rce1 {[%clk 0:02:19]}  Qc7 {[%clk 0:01:18]} 23. f4 {[%clk 0:02:15]}  e4 {[%clk 0:01:00]} 24. Bxg7 {[%clk 0:02:11]}  Kxg7 {[%clk 0:01:01]} 25. Bxe4 {[%clk 0:02:08]}  Nxe4 {[%clk 0:00:57]} 26. Rxe4 {[%clk 0:02:08]}  Qc5+ {[%clk 0:00:55]} 27. Kf1 {[%clk 0:02:02]}  Rxe4 {[%clk 0:00:49]} 28. Qxe4 {[%clk 0:02:02]}  Rd8 {[%clk 0:00:48]} 29. Qe5+ {[%clk 0:01:59]}  Qxe5 {[%clk 0:00:47]} 30. Rxe5 {[%clk 0:01:59]}  Rd2 {[%clk 0:00:43]} 31. Re2 {[%clk 0:01:59]}  Rd1+ {[%clk 0:00:43]} 32. Kf2 {[%clk 0:01:59]}  Rd7 {[%clk 0:00:39]} 33. Ke3 {[%clk 0:01:57]}  h5 {[%clk 0:00:33]} 34. Rd2 {[%clk 0:01:57]}  Re7+ {[%clk 0:00:33]} 35. Kd4 {[%clk 0:01:56]}  Kf6 {[%clk 0:00:29]} 36. b4 {[%clk 0:01:52]}  h4 {[%clk 0:00:21]} 37. c5 {[%clk 0:01:46]}  hxg3 {[%clk 0:00:18]} 38. hxg3 {[%clk 0:01:45]}  a6 {[%clk 0:00:17]} 39. a4 {[%clk 0:01:44]}  Kf5 {[%clk 0:00:13]} 40. b5 {[%clk 0:01:44]}  axb5 {[%clk 0:00:13]} 41. axb5 {[%clk 0:01:44]}  Re4+ {[%clk 0:00:11]} 42. Kd5 {[%clk 0:01:43]}  Rb4 {[%clk 0:00:11]} 43. b6 {[%clk 0:01:39]}  Kg4 {[%clk 0:00:08]} 44. Rd3 {[%clk 0:01:38]}  g5 {[%clk 0:00:07]} 45. fxg5 {[%clk 0:01:37]}  Kxg5 {[%clk 0:00:06]} 46. Kd6 {[%clk 0:01:37]}  Re4 {[%clk 0:00:04]} 47. Kc7 {[%clk 0:01:29]}  Re7+ {[%clk 0:00:04]} 48. Kb8 {[%clk 0:01:29]}  f5 {[%clk 0:00:03]} 49. c6 {[%clk 0:01:28]}  bxc6 {[%clk 0:00:03]} 50. b7 {[%clk 0:01:29]}  Re8+ {[%clk 0:00:01]} 51. Kc7 {[%clk 0:01:28]}  Re7+ {[%clk 0:00:01]} 52. Kxc6 {[%clk 0:01:28]}  Kg4 {[%clk 0:00:01]} 53. b8=Q {[%clk 0:01:27]}  Re6+ {[%clk 0:00:01]} 54. Kd5 {[%clk 0:01:26]} 1-0


[Site "https://www.chess.com"]

[Event "Titled Tuesday Blitz April 12 Early 2022"]
[White "Indjic, Aleksandar"]
[Black "Khripachenko, Alexander"]
[WhiteFideId "911925"]
[BlackFideId "54184975"]
[WhiteElo "2616"]
[BlackElo "2193"]
[Result "1-0"]
[Round "02"]
[TimeControl "180+1"]
[Date "2022.04.12"]
[WhiteClock "0:00:45"]
[BlackClock "0:00:13"]

1. e4 {[%clk 0:03:00]}  c6 {[%clk 0:02:59]} 2. Nf3 {[%clk 0:02:59]}  d5 {[%clk 0:02:58]} 3. d3 {[%clk 0:02:59]}  Bg4 {[%clk 0:02:57]} 4. h3 {[%clk 0:02:53]}  Bxf3 {[%clk 0:02:55]} 5. Qxf3 {[%clk 0:02:54]}  g6 {[%clk 0:02:54]} 6. g3 {[%clk 0:02:53]}  Bg7 {[%clk 0:02:55]} 7. Bg2 {[%clk 0:02:53]}  e6 {[%clk 0:02:55]} 8. O-O {[%clk 0:02:53]}  Nd7 {[%clk 0:02:56]} 9. Nd2 {[%clk 0:02:53]}  Ne7 {[%clk 0:02:54]} 10. Qe2 {[%clk 0:02:53]}  O-O {[%clk 0:02:54]} 11. f4 {[%clk 0:02:51]}  a5 {[%clk 0:02:54]} 12. Nf3 {[%clk 0:02:48]}  dxe4 {[%clk 0:02:52]} 13. dxe4 {[%clk 0:02:48]}  e5 {[%clk 0:02:49]} 14. a4 {[%clk 0:02:22]}  exf4 {[%clk 0:02:17]} 15. gxf4 {[%clk 0:02:21]}  Qb6+ {[%clk 0:02:17]} 16. Kh1 {[%clk 0:02:19]}  Rfe8 {[%clk 0:02:15]} 17. c3 {[%clk 0:02:13]}  Nf5 {[%clk 0:02:08]} 18. Kh2 {[%clk 0:02:12]}  Nc5 {[%clk 0:02:02]} 19. e5 {[%clk 0:02:00]}  Ne6 {[%clk 0:01:58]} 20. h4 {[%clk 0:01:44]}  Bh6 {[%clk 0:01:33]} 21. Qe4 {[%clk 0:01:43]}  Nc5 {[%clk 0:01:26]} 22. Qc4 {[%clk 0:01:18]}  Nb3 {[%clk 0:00:23]} 23. Bh3 {[%clk 0:01:13]}  Nxa1 {[%clk 0:00:16]} 24. Bxf5 {[%clk 0:01:13]}  Qb3 {[%clk 0:00:16]} 25. Bd3 {[%clk 0:01:05]}  Rad8 {[%clk 0:00:17]} 26. h5 {[%clk 0:01:01]}  Qxc4 {[%clk 0:00:12]} 27. Bxc4 {[%clk 0:01:01]}  Kg7 {[%clk 0:00:13]} 28. hxg6 {[%clk 0:00:53]}  hxg6 {[%clk 0:00:14]} 29. f5 {[%clk 0:00:53]}  Nc2 {[%clk 0:00:13]} 30. f6+ {[%clk 0:00:53]}  Kh7 {[%clk 0:00:14]} 31. Bxh6 {[%clk 0:00:48]}  Kxh6 {[%clk 0:00:14]} 32. Kg3 {[%clk 0:00:48]}  Kh7 {[%clk 0:00:13]} 33. Bxf7 {[%clk 0:00:45]} 1-0


[Site "https://www.chess.com"]

[Event "Titled Tuesday Blitz April 12 Early 2022"]
[White "Izoria, Zviad"]
[Black "Manukyan, Artyom"]
[WhiteFideId "13601733"]
[BlackFideId "13305786"]
[WhiteElo "2626"]
[BlackElo "2034"]
[Result "0-1"]
[Round "02"]
[TimeControl "180+1"]
[Date "2022.04.13"]
[WhiteClock "0:00:02"]
[BlackClock "0:00:07"]

1. Nf3 {[%clk 0:03:00]}  d5 {[%clk 0:02:58]} 2. d4 {[%clk 0:02:57]}  Nf6 {[%clk 0:02:58]} 3. c4 {[%clk 0:02:57]}  e6 {[%clk 0:02:58]} 4. g3 {[%clk 0:02:57]}  Be7 {[%clk 0:02:58]} 5. Bg2 {[%clk 0:02:57]}  O-O {[%clk 0:02:59]} 6. Qc2 {[%clk 0:02:57]}  c5 {[%clk 0:02:57]} 7. dxc5 {[%clk 0:02:57]}  Qa5+ {[%clk 0:02:56]} 8. Nc3 {[%clk 0:02:57]}  dxc4 {[%clk 0:02:56]} 9. O-O {[%clk 0:02:56]}  Qxc5 {[%clk 0:02:50]} 10. Bg5 {[%clk 0:02:56]}  Nc6 {[%clk 0:02:50]} 11. Bxf6 {[%clk 0:02:50]}  gxf6 {[%clk 0:02:51]} 12. Rfd1 {[%clk 0:02:46]}  f5 {[%clk 0:02:44]} 13. e4 {[%clk 0:02:24]}  Bf6 {[%clk 0:02:32]} 14. exf5 {[%clk 0:02:23]}  Qxf5 {[%clk 0:02:33]} 15. Ne4 {[%clk 0:02:22]}  Bg7 {[%clk 0:02:29]} 16. Qxc4 {[%clk 0:02:21]}  Bxb2 {[%clk 0:02:25]} 17. Rab1 {[%clk 0:02:21]}  Bg7 {[%clk 0:02:25]} 18. Nd6 {[%clk 0:02:21]}  Qh5 {[%clk 0:02:07]} 19. Rb5 {[%clk 0:01:48]}  Ne5 {[%clk 0:01:57]} 20. Qe2 {[%clk 0:01:48]}  Nxf3+ {[%clk 0:01:48]} 21. Bxf3 {[%clk 0:01:48]}  Qg6 {[%clk 0:01:33]} 22. Rc5 {[%clk 0:01:38]}  e5 {[%clk 0:01:23]} 23. Be4 {[%clk 0:01:02]}  Qg4 {[%clk 0:01:15]} 24. f3 {[%clk 0:00:59]}  Qh5 {[%clk 0:01:09]} 25. g4 {[%clk 0:00:52]}  Qg5 {[%clk 0:01:04]} 26. Bf5 {[%clk 0:00:52]}  Be6 {[%clk 0:00:55]} 27. Bxe6 {[%clk 0:00:48]}  fxe6 {[%clk 0:00:55]} 28. Ne4 {[%clk 0:00:48]}  Qf4 {[%clk 0:00:52]} 29. Kg2 {[%clk 0:00:48]}  Rf7 {[%clk 0:00:47]} 30. Rc4 {[%clk 0:00:43]}  Raf8 {[%clk 0:00:42]} 31. Rd3 {[%clk 0:00:38]}  h5 {[%clk 0:00:35]} 32. Nd6 {[%clk 0:00:35]}  Qg5 {[%clk 0:00:21]} 33. Nxf7 {[%clk 0:00:35]}  Rxf7 {[%clk 0:00:22]} 34. Rc8+ {[%clk 0:00:26]}  Kh7 {[%clk 0:00:21]} 35. Qe4+ {[%clk 0:00:25]}  Kh6 {[%clk 0:00:22]} 36. Rdd8 {[%clk 0:00:08]}  hxg4 {[%clk 0:00:13]} 37. Rh8+ {[%clk 0:00:07]}  Bxh8 {[%clk 0:00:14]} 38. Rxh8+ {[%clk 0:00:08]}  Kg7 {[%clk 0:00:15]} 39. Rh7+ {[%clk 0:00:04]}  Kg8 {[%clk 0:00:07]} 40. Rxf7 {[%clk 0:00:05]}  Kxf7 {[%clk 0:00:08]} 41. fxg4 {[%clk 0:00:01]}  Qd2+ {[%clk 0:00:08]} 42. Kg3 {[%clk 0:00:02]}  Qxa2 {[%clk 0:00:07]} 0-1


[Site "https://www.chess.com"]

[Event "Titled Tuesday Blitz April 12 Early 2022"]
[White "Jaskolka, Tomasz"]
[Black "Mekhitarian, Krikor Sevag"]
[WhiteFideId "1170791"]
[BlackFideId "2107660"]
[WhiteElo "2073"]
[BlackElo "2598"]
[Result "0-1"]
[Round "02"]
[TimeControl "180+1"]
[Date "2022.04.13"]
[WhiteClock "0:00:13"]
[BlackClock "0:00:05"]

1. d4 {[%clk 0:03:00]}  Nf6 {[%clk 0:02:48]} 2. Bf4 {[%clk 0:03:00]}  c5 {[%clk 0:02:43]} 3. c3 {[%clk 0:02:58]}  g6 {[%clk 0:02:35]} 4. e3 {[%clk 0:02:54]}  Bg7 {[%clk 0:02:34]} 5. Nd2 {[%clk 0:02:54]}  d6 {[%clk 0:02:33]} 6. Ngf3 {[%clk 0:02:53]}  O-O {[%clk 0:02:30]} 7. Be2 {[%clk 0:02:52]}  Nh5 {[%clk 0:02:01]} 8. Bg5 {[%clk 0:02:41]}  h6 {[%clk 0:01:59]} 9. Bh4 {[%clk 0:02:42]}  g5 {[%clk 0:02:00]} 10. Bg3 {[%clk 0:02:41]}  Nd7 {[%clk 0:01:44]} 11. Bd3 {[%clk 0:02:17]}  Ndf6 {[%clk 0:01:36]} 12. Qe2 {[%clk 0:02:13]}  Qc7 {[%clk 0:01:23]} 13. Ne4 {[%clk 0:01:58]}  Nxe4 {[%clk 0:00:36]} 14. Bxe4 {[%clk 0:01:58]}  Nf6 {[%clk 0:00:32]} 15. Bc2 {[%clk 0:01:57]}  Rb8 {[%clk 0:00:31]} 16. h4 {[%clk 0:01:38]}  g4 {[%clk 0:00:30]} 17. Nh2 {[%clk 0:01:33]}  b5 {[%clk 0:00:28]} 18. f3 {[%clk 0:01:31]}  b4 {[%clk 0:00:24]} 19. Nxg4 {[%clk 0:01:28]}  Nxg4 {[%clk 0:00:20]} 20. fxg4 {[%clk 0:01:28]}  bxc3 {[%clk 0:00:21]} 21. bxc3 {[%clk 0:01:29]}  Qa5 {[%clk 0:00:22]} 22. Qd3 {[%clk 0:01:26]}  f5 {[%clk 0:00:22]} 23. O-O {[%clk 0:01:22]}  Ba6 {[%clk 0:00:22]} 24. c4 {[%clk 0:01:17]}  cxd4 {[%clk 0:00:22]} 25. gxf5 {[%clk 0:01:12]}  Bf6 {[%clk 0:00:17]} 26. exd4 {[%clk 0:01:05]}  Rb2 {[%clk 0:00:14]} 27. Bb3 {[%clk 0:01:02]}  Rd2 {[%clk 0:00:14]} 28. Qf3 {[%clk 0:01:01]}  Rxd4 {[%clk 0:00:12]} 29. Kh2 {[%clk 0:00:56]}  Kh7 {[%clk 0:00:12]} 30. Rae1 {[%clk 0:00:53]}  Rg8 {[%clk 0:00:12]} 31. c5 {[%clk 0:00:46]}  Rxg3 {[%clk 0:00:08]} 32. Kxg3 {[%clk 0:00:26]}  Rxh4 {[%clk 0:00:07]} 33. cxd6 {[%clk 0:00:19]}  exd6 {[%clk 0:00:06]} 34. Re6 {[%clk 0:00:15]}  Qd8 {[%clk 0:00:06]} 35. Qd5 {[%clk 0:00:10]}  Be5+ {[%clk 0:00:06]} 36. Rxe5 {[%clk 0:00:07]}  Qg5+ {[%clk 0:00:07]} 37. Kf2 {[%clk 0:00:08]}  dxe5 {[%clk 0:00:07]} 38. Qf7+ {[%clk 0:00:08]}  Qg7 {[%clk 0:00:07]} 39. Qxg7+ {[%clk 0:00:08]}  Kxg7 {[%clk 0:00:08]} 40. Kg3 {[%clk 0:00:08]}  Bxf1 {[%clk 0:00:06]} 41. Kxh4 {[%clk 0:00:08]}  Bxg2 {[%clk 0:00:07]} 42. Kg4 {[%clk 0:00:08]}  Kf6 {[%clk 0:00:06]} 43. Bc2 {[%clk 0:00:08]}  Bd5 {[%clk 0:00:06]} 44. a3 {[%clk 0:00:08]}  a5 {[%clk 0:00:06]} 45. Bb1 {[%clk 0:00:09]}  Bf7 {[%clk 0:00:06]} 46. Bc2 {[%clk 0:00:09]}  Be8 {[%clk 0:00:07]} 47. Bb1 {[%clk 0:00:09]}  Bb5 {[%clk 0:00:04]} 48. Bc2 {[%clk 0:00:09]}  Bc4 {[%clk 0:00:05]} 49. Bb1 {[%clk 0:00:09]}  Bd5 {[%clk 0:00:05]} 50. Bc2 {[%clk 0:00:09]}  Bc6 {[%clk 0:00:04]} 51. Bb1 {[%clk 0:00:09]}  Be8 {[%clk 0:00:05]} 52. Bc2 {[%clk 0:00:09]}  h5+ {[%clk 0:00:06]} 53. Kh4 {[%clk 0:00:09]}  Bd7 {[%clk 0:00:06]} 54. Kxh5 {[%clk 0:00:09]}  Bxf5 {[%clk 0:00:07]} 55. Bb3 {[%clk 0:00:10]}  e4 {[%clk 0:00:07]} 56. Kh4 {[%clk 0:00:10]}  Ke5 {[%clk 0:00:08]} 57. Kg3 {[%clk 0:00:11]}  Kd4 {[%clk 0:00:08]} 58. Kf2 {[%clk 0:00:12]}  Kc3 {[%clk 0:00:08]} 59. Bd5 {[%clk 0:00:12]}  Kb2 {[%clk 0:00:06]} 60. a4 {[%clk 0:00:12]}  Bd7 {[%clk 0:00:03]} 61. Bxe4 {[%clk 0:00:10]}  Bxa4 {[%clk 0:00:04]} 62. Ke3 {[%clk 0:00:11]}  Kc3 {[%clk 0:00:04]} 63. Bd5 {[%clk 0:00:11]}  Bb5 {[%clk 0:00:03]} 64. Be6 {[%clk 0:00:10]}  a4 {[%clk 0:00:03]} 65. Kf2 {[%clk 0:00:10]}  a3 {[%clk 0:00:03]} 66. Ke1 {[%clk 0:00:10]}  Bc4 {[%clk 0:00:03]} 67. Bxc4 {[%clk 0:00:10]}  Kxc4 {[%clk 0:00:04]} 68. Kd2 {[%clk 0:00:11]}  a2 {[%clk 0:00:04]} 69. Kc2 {[%clk 0:00:12]}  a1=Q {[%clk 0:00:05]} 70. Kd2 {[%clk 0:00:12]}  Qc3+ {[%clk 0:00:05]} 71. Kd1 {[%clk 0:00:12]}  Qb2 {[%clk 0:00:05]} 72. Ke1 {[%clk 0:00:12]}  Kd3 {[%clk 0:00:06]} 73. Kd1 {[%clk 0:00:13]}  Qd2# {[%clk 0:00:05]} 0-1


[Site "https://www.chess.com"]

[Event "Titled Tuesday Blitz April 12 Early 2022"]
[White "Johnson, Ben"]
[Black "Paravyan, David"]
[WhiteFideId "2010917"]
[BlackFideId "4194985"]
[WhiteElo "2122"]
[BlackElo "2569"]
[Result "0-1"]
[Round "02"]
[TimeControl "180+1"]
[Date "2022.04.13"]
[WhiteClock "0:00:02"]
[BlackClock "0:00:58"]

1. Nf3 {[%clk 0:02:57]}  Nf6 {[%clk 0:02:26]} 2. c4 {[%clk 0:02:53]}  c5 {[%clk 0:02:27]} 3. g3 {[%clk 0:02:53]}  d5 {[%clk 0:02:27]} 4. cxd5 {[%clk 0:02:48]}  Nxd5 {[%clk 0:02:28]} 5. Nc3 {[%clk 0:02:47]}  Nc6 {[%clk 0:02:28]} 6. Bg2 {[%clk 0:02:46]}  Nxc3 {[%clk 0:02:25]} 7. bxc3 {[%clk 0:02:47]}  e5 {[%clk 0:02:25]} 8. O-O {[%clk 0:02:45]}  Be7 {[%clk 0:02:25]} 9. d3 {[%clk 0:02:29]}  O-O {[%clk 0:02:26]} 10. Be3 {[%clk 0:02:28]}  Bd7 {[%clk 0:02:25]} 11. Rb1 {[%clk 0:02:28]}  b6 {[%clk 0:02:25]} 12. Nd2 {[%clk 0:02:23]}  Rc8 {[%clk 0:02:25]} 13. a4 {[%clk 0:02:19]}  Na5 {[%clk 0:02:24]} 14. Qc2 {[%clk 0:02:10]}  Be6 {[%clk 0:02:23]} 15. c4 {[%clk 0:01:54]}  Nc6 {[%clk 0:02:20]} 16. Nb3 {[%clk 0:01:47]}  Nb4 {[%clk 0:02:19]} 17. Qd2 {[%clk 0:01:42]}  a5 {[%clk 0:02:18]} 18. Rfd1 {[%clk 0:01:37]}  Qd7 {[%clk 0:02:18]} 19. Ra1 {[%clk 0:01:28]}  f5 {[%clk 0:02:18]} 20. Bg5 {[%clk 0:01:21]}  Bd6 {[%clk 0:02:15]} 21. Qb2 {[%clk 0:01:13]}  f4 {[%clk 0:02:13]} 22. gxf4 {[%clk 0:00:35]}  exf4 {[%clk 0:02:14]} 23. Be4 {[%clk 0:00:27]}  Bf5 {[%clk 0:02:06]} 24. Kh1 {[%clk 0:00:20]}  Rce8 {[%clk 0:02:05]} 25. f3 {[%clk 0:00:20]}  Bxe4 {[%clk 0:02:02]} 26. dxe4 {[%clk 0:00:19]}  Qe6 {[%clk 0:02:02]} 27. Rg1 {[%clk 0:00:15]}  Be5 {[%clk 0:02:02]} 28. Qd2 {[%clk 0:00:12]}  Bxa1 {[%clk 0:01:59]} 29. Nxa1 {[%clk 0:00:13]}  Kh8 {[%clk 0:01:53]} 30. Qc3 {[%clk 0:00:12]}  Qe5 {[%clk 0:01:48]} 31. Qd2 {[%clk 0:00:11]}  h6 {[%clk 0:01:44]} 32. Bh4 {[%clk 0:00:10]}  Qd4 {[%clk 0:01:40]} 33. Qe1 {[%clk 0:00:07]}  Qxc4 {[%clk 0:01:35]} 34. Qf2 {[%clk 0:00:07]}  Qf7 {[%clk 0:01:23]} 35. Qg2 {[%clk 0:00:06]}  Rg8 {[%clk 0:01:22]} 36. Be1 {[%clk 0:00:06]}  Nc6 {[%clk 0:01:20]} 37. Nc2 {[%clk 0:00:03]}  g5 {[%clk 0:01:13]} 38. Bc3+ {[%clk 0:00:03]}  Kh7 {[%clk 0:01:14]} 39. Qh3 {[%clk 0:00:03]}  Qe6 {[%clk 0:01:12]} 40. Qh5 {[%clk 0:00:03]}  Re7 {[%clk 0:01:04]} 41. Ne1 {[%clk 0:00:03]}  Nd4 {[%clk 0:01:04]} 42. Nd3 {[%clk 0:00:02]}  Nxe2 {[%clk 0:00:58]} 0-1


[Site "https://www.chess.com"]

[Event "Titled Tuesday Blitz April 12 Early 2022"]
[White "Kadam, Om Manish"]
[Black "Rudzinska, Michalina"]
[WhiteFideId "45076294"]
[BlackFideId "1172883"]
[WhiteElo "1729"]
[BlackElo "1904"]
[Result "1-0"]
[Round "02"]
[TimeControl "180+1"]
[Date "2022.04.13"]
[WhiteClock "0:00:02"]
[BlackClock "0:00:02"]

1. e4 {[%clk 0:02:55]}  c5 {[%clk 0:02:51]} 2. Nf3 {[%clk 0:02:27]}  d6 {[%clk 0:02:49]} 3. d4 {[%clk 0:02:26]}  cxd4 {[%clk 0:02:46]} 4. Nxd4 {[%clk 0:02:27]}  Nf6 {[%clk 0:02:47]} 5. Nc3 {[%clk 0:02:28]}  a6 {[%clk 0:02:48]} 6. g3 {[%clk 0:02:28]}  e6 {[%clk 0:02:46]} 7. Bg2 {[%clk 0:02:28]}  Be7 {[%clk 0:02:46]} 8. a4 {[%clk 0:02:28]}  O-O {[%clk 0:02:47]} 9. O-O {[%clk 0:02:29]}  Nbd7 {[%clk 0:02:46]} 10. h3 {[%clk 0:02:29]}  Qc7 {[%clk 0:02:44]} 11. g4 {[%clk 0:02:29]}  Rb8 {[%clk 0:02:41]} 12. a5 {[%clk 0:02:24]}  Ne5 {[%clk 0:02:40]} 13. f4 {[%clk 0:02:21]}  Nc4 {[%clk 0:02:40]} 14. g5 {[%clk 0:02:09]}  Nd7 {[%clk 0:02:39]} 15. f5 {[%clk 0:02:09]}  Qc5 {[%clk 0:02:27]} 16. Kh1 {[%clk 0:02:00]}  Nde5 {[%clk 0:02:00]} 17. f6 {[%clk 0:01:48]}  Bd8 {[%clk 0:01:57]} 18. Nb3 {[%clk 0:01:43]}  Qc7 {[%clk 0:01:55]} 19. Qh5 {[%clk 0:01:37]}  Ng6 {[%clk 0:01:33]} 20. Nd4 {[%clk 0:01:16]}  Qc5 {[%clk 0:01:21]} 21. Nde2 {[%clk 0:01:16]}  gxf6 {[%clk 0:01:13]} 22. Qh6 {[%clk 0:01:08]}  fxg5 {[%clk 0:01:06]} 23. Ng3 {[%clk 0:01:06]}  f6 {[%clk 0:00:50]} 24. Nh5 {[%clk 0:00:51]}  Rf7 {[%clk 0:00:43]} 25. e5 {[%clk 0:00:47]}  d5 {[%clk 0:00:26]} 26. exf6 {[%clk 0:00:40]}  Qf8 {[%clk 0:00:24]} 27. Qxg5 {[%clk 0:00:40]}  Nd6 {[%clk 0:00:17]} 28. Ra4 {[%clk 0:00:36]}  Ne8 {[%clk 0:00:17]} 29. Rg4 {[%clk 0:00:35]}  Nxf6 {[%clk 0:00:17]} 30. Nxf6+ {[%clk 0:00:21]}  Bxf6 {[%clk 0:00:18]} 31. Rxf6 {[%clk 0:00:19]}  Rxf6 {[%clk 0:00:19]} 32. h4 {[%clk 0:00:20]}  e5 {[%clk 0:00:16]} 33. Nxd5 {[%clk 0:00:20]}  Rf1+ {[%clk 0:00:13]} 34. Kh2 {[%clk 0:00:20]}  Bxg4 {[%clk 0:00:13]} 35. h5 {[%clk 0:00:16]}  Bxh5 {[%clk 0:00:11]} 36. Be3 {[%clk 0:00:13]}  Rf5 {[%clk 0:00:10]} 37. Qg3 {[%clk 0:00:12]}  Rd8 {[%clk 0:00:09]} 38. Be4 {[%clk 0:00:12]}  Rf6 {[%clk 0:00:04]} 39. Nxf6+ {[%clk 0:00:11]}  Qxf6 {[%clk 0:00:05]} 40. Bg5 {[%clk 0:00:11]}  Qd6 {[%clk 0:00:03]} 41. Qb3+ {[%clk 0:00:10]}  Kh8 {[%clk 0:00:02]} 42. Qxb7 {[%clk 0:00:10]}  Qd7 {[%clk 0:00:02]} 43. Qb6 {[%clk 0:00:07]}  Rf8 {[%clk 0:00:01]} 44. Bf6+ {[%clk 0:00:01]}  Kg8 {[%clk 0:00:02]} 45. Bd3 {[%clk 0:00:02]}  Bg4 {[%clk 0:00:02]} 46. Bc4+ {[%clk 0:00:02]} 1-0


[Site "https://www.chess.com"]